Workbook

Sheet 1-6,15-20.05.2023
A1: Школа | B1: - | E1: Отд./корп | I1: День
A3: Прием пищи | B3: Раздел | C3: № рец. | D3: Блюдо | E3: Выход, г | F3: Цена, руб | G3: Калорийность, ккал | H3: Белки,г | I3: Жиры,г | J3: Углеводы,г
A4: Завтрак | B4: гор.блюдо | C4: ТТК 2022 г | D4: Ёжики мясные с рисом в соусе томатном | E4: 100 | G4: 170.00 | H4: 9.56 | I4: 10.92 | J4: 9.00
B5: гор блюдо | C5: № 202/2015 | D5: Макаронные изделия отварные | E5: 150 | G5: 207.00 | H5: 5.64 | I5: 4.46 | J5: 35.94
B6: гор.напиток | C6: № 648/2004 г | D6: Компот из замороженной компотной смеси | E6: 180 | G6: 41 | H6: 0.12 | I6: 0.02 | J6: 10.03
A7: понедельник | B7: хлеб | D7: Хлеб ржано-пшеничный | E7: 30 | G7: 66.00 | H7: 1.50 | I7: 0.30 | J7: 13.50
C8: № 71/2015 г | D8: Овощи натуральные свежие (огурцы) (доп гарнир) | E8: 60 | G8: 7.00 | H8: 0.42 | I8: 0.06 | J8: 1.14
B9: фрукт | C9: № 338/2015г | D9: Плоды свежие (яблоки) | E9: 100 | G9: 47.00 | H9: 0.40 | I9: 0.40 | J9: 9.80
A10: ИТОГО | E10: =E4+E5+E6+E7+E8+E9 -> 620 | F10: 62.10 | G10: =G4+G5+G6+G7+G8+G9 -> 538 | H10: =H4+H5+H6+H7+H8+H9 -> 17.64 | I10: =I4+I5+I6+I7+I8+I9 -> 16.16 | J10: =J4+J5+J6+J7+J8+J9 -> 79.41
A11: Завтрак | B11: гор.блюдо | C11: ТТК 2022 г | D11: Грудки куриные (филе) по-французки | E11: 170 | G11: 363.00 | H11: 16.06 | I11: 17.20 | J11: 35.96
A12: вторник | B12: гор.напиток | C12: ТТК 2021 г | D12: Чай с сахором, лимоном | E12: 192 | G12: 31.00 | H12: 0.06 | I12: 0.01 | J12: 7.34
B13: хлеб | D13: Хлеб ржано-пшеничный | E13: 20 | G13: 44.00 | H13: 1.00 | I13: 0.20 | J13: 9.00
D14: Хлеб пшеничный | E14: 20 | G14: 47.00 | H14: 1.52 | I14: 0.16 | J14: 9.84
C15: 70/2015 | D15: Овощи натуральные соленые (огурцы)-доп.гарн | E15: 20 | G15: 5.00 | H15: 0.22 | I15: 0.04 | J15: 0.76
B16: фрукт | C16: № 338/2015г | D16: Плоды свежие (яблоки) | E16: 100 | G16: 47.00 | H16: 0.40 | I16: 0.40 | J16: 9.80
A17: ИТОГО | E17: =E11+E12+E13+E14+E15+E16 -> 522 | F17: 62.10 | G17: =G11+G12+G13+G14+G15+G16 -> 537.00 | H17: =H11+H12+H13+H14+H15+H16 -> 19.26 | I17: 18.01 | J17: 72.70
A18: Завтрак | B18: гор.блюдо | C18: №360/2015г | D18: Гуляш из говядины | E18: 70 | G18: 134 | H18: 10.64 | I18: 8.37 | J18: 3.99
B19: гор.блюдо | C19: №304/2015г | D19: Рис отворной | E19: 150 | G19: 224 | H19: 3.83 | I19: 5.43 | J19: 40.01
B20: гор.напиток | C20: ТТК 2021г | D20: Чай с сахором | E20: 187 | G20: 29.00 | H20: 0.02 | J20: 7.19
A21: среда | B21: хлеб | D21: Хлеб ржано-пшеничный | E21: 15 | G21: 33.00 | H21: 0.75 | I21: 0.15 | J21: 6.75
B22: хлеб | D22: Хлеб пшеничный | E22: 15 | G22: 35.00 | H22: 1.14 | I22: 0.12 | J22: 7.38
D23: Ассорти овощное (помидоры, огурцы свежие с маслом) | E23: 65 | G23: 55.00 | H23: 0.54 | I23: 5.08 | J23: 1.71
A24: ИТОГО | E24: =E18+E19+E20+E21+E22+E23 -> 502 | F24: 62.10 | G24: =G18+G19+G20+G21+G22+G23 -> 510.00 | H24: =H18+H19+H20+H21+H22+H23 -> 16.92 | I24: 19.15 | J24: 67.03
A25: Завтрак | B25: гор.блюдо | C25: ТТК 2023 г | D25: Индейка (филе) в томатном соусе | E25: 90 | G25: 157.00 | H25: 9.84 | I25: 12.21 | J25: 1.89
B26: гор.блюдо | C26: №302/2015г | D26: Каша гречневая рассыпчатая | E26: 150 | G26: 242.00 | H26: 6.62 | I26: 5.39 | J26: 41.87
B27: гор.напиток | C27: № 384/2015 | D27: Компот из плодов сушеных (урюк) | E27: 180 | G27: 71.00 | H27: 0.72 | I27: 0.06 | J27: 16.61
B28: хлеб | D28: Хлеб ржано-пшеничный | E28: 15 | G28: 33.00 | H28: 0.75 | I28: 0.15 | J28: 6.75
B29: хлеб | D29: Хлеб пшеничный | E29: 15 | G29: 35.00 | H29: 1.14 | I29: 0.12 | J29: 7.38
A30: четверг | C30: 70/2015 | D30: Овощи натуральные соленые (огурцы)-доп.гарн | E30: 20 | G30: 5.00 | H30: 0.22 | I30: 0.04 | J30: 0.76
B31: фрукты | C31: №338/2015 | D31: Плоды свежие (яблоки) | E31: 100 | G31: 47.00 | H31: 0.40 | I31: 0.40 | J31: 9.80
A32: ИТОГО | E32: =E25+E26+E27+E28+E29+E30+E31 -> 570 | F32: 62.10 | G32: =G25+G26+G27+G28+G29+G30+G31 -> 590.00 | H32: =H25+H26+H27+H28+H29+H30+H31 -> 19.69 | I32: 18.37 | J32: 85.06
A33: Завтрак | B33: гор.блюдо | C33: ТТК 2023 г | D33: Биточки рыные из фарша минтая с з/горошком отварным | E33: 90 | G33: 152 | H33: 8.08 | I33: 9.15 | J33: 7.29
B34: гор.блюдо | C34: №312/2015г | D34: Пюре картофельное смаслом сливочным | E34: 155 | G34: 179 | H34: 3.32 | I34: 8.28 | J34: 22.06
B35: гор.напиток | C35: ТТК 2021г | D35: Чай с сахором | E35: 187 | G35: 29.00 | H35: 0.02 | J35: 7.19
A36: пятница | B36: хлеб | D36: Хлеб ржано-пшеничный | E36: 15 | G36: 33.00 | H36: 0.75 | I36: 0.15 | J36: 6.75
B37: хлеб | D37: Хлеб пшеничный | E37: 20 | G37: 47.00 | H37: 1.52 | I37: 0.16 | J37: 9.84
C38: Акт 2018г | D38: Блинчики со сгущенным молоком | E38: 55 | G38: 114.00 | H38: 3.19 | I38: 2.52 | J38: 19.50
A39: ИТОГО | E39: =E33+E34+E35+E36+E37+E38 -> 522 | F39: 62.10 | G39: =G33+G34+G35+G36+G37+G38 -> 554 | H39: =H33+H34+H35+H36+H37+H38 -> 16.88 | I39: 20.26 | J39: 72.63
A40: Завтрак | B40: гор.блюдо | C40: №243/2015г | D40: Сосиски отварные | E40: 100 | G40: 144 | H40: 9.40 | I40: 11.00 | J40: 1.80
B41: гор.блюдо | C41: №202/2015г | D41: Макаронные изделия отварные | E41: 150 | G41: 207 | H41: 5.64 | I41: 4.46 | J41: 35.94
B42: гор.напиток | C42: ТТК 20121г | D42: Компот из замороженной вишни | E42: 180 | G42: 43 | H42: 0.11 | I42: 0.03 | J42: 10.41
B43: хлеб | D43: Хлеб ржано-пшеничный | E43: 20 | G43: 44.00 | H43: 1.00 | I43: 0.20 | J43: 9.00
B44: хлеб | D44: Хлеб пшеничный | E44: 20 | G44: 47.00 | H44: 1.52 | I44: 0.16 | J44: 9.84
A45: Суббота | C45: №71/2015г | D45: Овощи натуральные свежие (помидоры) (доп гарнир) | E45: 30 | G45: 7.00 | H45: 0.33 | I45: 0.06 | J45: 1.14
A46: ИТОГО | E46: =E40+E41+E42+E43+E44+E45 -> 500 | F46: 62.10 | G46: =G40+G41+G42+G43+G44+G45 -> 492.00 | H46: =H40+H41+H42+H43+H44+H45 -> 18.00 | I46: 15.91 | J46: 68.13

Sheet 8-13, 22-27.05.2023
A1: Школа | B1: МБОУ "Школа №113" | E1: Отд./корп | I1: День | J1: 2023-05-13
A3: Завтрак | B3: гор.блюдо | C3: №243/2015г | D3: Пельмени "Для Умников и умниц" с соусом "Переменка" | E3: 170 | G3: 272 | H3: 13.60 | I3: 14.80 | J3: 21.45
B5: гор.напиток | C5: ТТК 20121г | D5: Напиток из шиповника | E5: 180 | G5: 37 | H5: 0.01 | J5: 9.16
B6: хлеб | D6: Хлеб ржано-пшеничный | E6: 25 | G6: 55.00 | H6: 1.25 | I6: 0.25 | J6: 11.25
B7: фрукт | C7: №338/2015 | D7: Плоды свежие (яблоки) | E7: 100 | G7: 47.00 | H7: 0.40 | I7: 0.40 | J7: 9.80
A8: Суббота | B8: Печенье | D8: Печенье весовое | E8: 45 | G8: 134 | H8: 2.07 | I8: 4.14 | J8: 22.23
A9: ИТОГО | E9: =E3+E4+E5+E6+E7+E8 -> 520 | F9: 62.10 | G9: =G3+G4+G5+G6+G7+G8 -> 545.00 | H9: =H3+H4+H5+H6+H7+H8 -> 17.33 | I9: =I3+I4+I5+I6+I7+I8 -> 19.59 | J9: =J3+J4+J5+J6+J7+J8 -> 73.89
